[Event "MARCEL 1st Div Ch-League 2019"]
[Site "Dhaka"]
[Date "2019.11.17"]
[Round "6.11"]
[White "Nayem, Haque"]
[Black "Bappi, A.b."]
[Result "1-0"]
[ECO "C55"]
[WhiteElo "1875"]
[BlackElo "1827"]
[Annotator "NA RC"]
[PlyCount "87"]
[EventDate "2019.11.12"]
[EventCountry "BAN"]
[TimeControl "5400+30"]

1. e4 {[%emt 1:30:30]} e5 {[%emt 1:30:30]} 2. Nf3 {[%emt 0:00:30]} Nc6 {[%emt 0:00:30]} 3. Bc4 {[%emt 0:00:30]} Be7 {[%emt 0:00:30]} 4. O-O {[%emt 0:00:30]} Nf6 {[%emt 0:00:30]} 5. d4 {[%emt 0:00:30]} d6 {[%emt 0:00:30]} 6. dxe5 {[%emt 0:00:30]} Nxe5 {[%emt 0:00:30]} 7. Nxe5 {[%emt 0:00:30]} dxe5 {[%emt 0:00:30]} 8. Qxd8+ {[%emt 0:00:30]} Bxd8 {[%emt 0:00:30]} 9. f3 {[%emt 0:00:30]} O-O {[%emt 0:00:30]} 10. Be3 {[%emt 0:00:30]} c6 {[%emt 0:00:30]} 11. a4 {[%emt 0:00:30]} Bb6 {[%emt 0:00:30]} 12. Kf2 {[%emt 0:00:30]} Nd7 {[%emt 0:00:30]} 13. a5 {[%emt 0:00:30]} Bxe3+ {[%emt 0:00:30]} 14. Kxe3 {[%emt 0:00:30]} Nc5 {[%emt 0:00:30]} 15. Nd2 {[%emt 0:00:30]} Rb8 {[%emt 0:00:30]} 16. Nb3 {[%emt 0:00:30]} Ne6 {[%emt 0:00:30]} 17. Bxe6 {[%emt 0:00:30]} Bxe6 {[%emt 0:00:30]} 18. Nc5 {[%emt 0:00:30]} Rfe8 {[%emt 0:00:30]} 19. Rfd1 {[%emt 0:00:30]} b6 {[%emt 0:00:30]} 20. Nxe6 {[%emt 0:00:30]} Rxe6 {[%emt 0:00:30]} 21. Rd7 {[%emt 0:00:30]} bxa5 {[%emt 0:00:30]} 22. Rxa5 {[%emt 0:00:30]} g6 {[%emt 0:00:30]} 23. b3 {[%emt 0:00:30]} Ra8 {[%emt 0:00:30]} 24. Raxa7 {[%emt 0:00:30]} Rxa7 {[%emt 0:00:30]} 25. Rxa7 {[%emt 0:00:30]} h5 {[%emt 0:00:30]} 26. Rd7 {[%emt 0:00:30]} Kf8 {[%emt 0:00:30]} 27. b4 {[%emt 0:00:30]} Ke8 {[%emt 0:00:30]} 28. Rc7 {[%emt 0:00:30]} g5 {[%emt 0:00:30]} 29. c3 {[%emt 0:00:30]} h4 {[%emt 0:00:30]} 30. g3 {[%emt 0:00:30]} hxg3 {[%emt 0:00:30]} 31. hxg3 {[%emt 0:00:30]} Rh6 {[%emt 0:00:30]} 32. g4 {[%emt 0:00:30]} Rd6 {[%emt 0:00:30]} 33. c4 {[%emt 0:00:30]} Re6 {[%emt 0:00:30]} 34. Rb7 {[%emt 0:00:30]} Rd6 {[%emt 0:00:30]} 35. Rc7 {[%emt 0:00:30]} Re6 {[%emt 0:00:30]} 36. c5 {[%emt 0:00:30]} Rf6 {[%emt 0:00:30]} 37. Rc8+ {[%emt 0:00:30]} Kd7 {[%emt 0:00:30]} 38. Rg8 {[%emt 0:00:30]} Rg6 {[%emt 0:00:30]} 39. Rxg6 {[%emt 0:00:30]} fxg6 {[%emt 0:00:30]} 40. Kd3 {[%emt 0:00:30]} Kc7 {[%emt 0:00:30]} 41. Kc4 {[%emt 0:00:30]} Kb7 {[%emt 0:00:30]} 42. b5 {[%emt 0:00:30]} Kc7 {[%emt 0:00:30]} 43. bxc6 {[%emt 0:00:30]} Kxc6 {[%emt 0:00:30]} 44. Kb4 {[%emt 0:00:30]} 1-0

[Event "MARCEL 1st Div Ch-League 2019"]
[Site "Dhaka"]
[Date "2019.11.17"]
[Round "6.12"]
[White "Khondakar, Nazre Mowla"]
[Black "Islam, Sheik Md. Khairul"]
[Result "1/2-1/2"]
[ECO "D52"]
[WhiteElo "1864"]
[BlackElo "1966"]
[Annotator "NA RC"]
[PlyCount "60"]
[EventDate "2019.11.12"]
[EventCountry "BAN"]
[TimeControl "5400+30"]

1. d4 {[%emt 1:30:30]} d5 {[%emt 1:30:30]} 2. c4 {[%emt 0:00:30]} e6 {[%emt 0:00:30]} 3. Nc3 {[%emt 0:00:30]} c6 {[%emt 0:00:30]} 4. Nf3 {[%emt 0:00:30]} Nf6 {[%emt 0:00:30]} 5. Bg5 {[%emt 0:00:30]} Nbd7 {[%emt 0:00:30]} 6. e3 {[%emt 0:00:30]} a6 {[%emt 0:00:30]} 7. Rc1 {[%emt 0:00:30]} Be7 {[%emt 0:00:30]} 8. Bd3 {[%emt 0:00:30]} dxc4 {[%emt 0:00:30]} 9. Bxc4 {[%emt 0:00:30]} b5 {[%emt 0:00:30]} 10. Bd3 {[%emt 0:00:30]} Bb7 {[%emt 0:00:30]} 11. O-O {[%emt 0:00:30]} c5 {[%emt 0:00:30]} 12. dxc5 {[%emt 0:00:30]} Nxc5 {[%emt 0:00:30]} 13. Bb1 {[%emt 0:00:30]} Qb6 {[%emt 0:00:30]} 14. b4 {[%emt 0:00:30]} Nce4 {[%emt 0:00:30]} 15. Nxe4 {[%emt 0:00:30]} Nxe4 {[%emt 0:00:30]} 16. Bxe7 {[%emt 0:00:30]} Kxe7 {[%emt 0:00:30]} 17. Qd4 {[%emt 0:00:30]} Qxd4 {[%emt 0:00:30]} 18. Nxd4 {[%emt 0:00:30]} Rhc8 {[%emt 0:00:30]} 19. Bxe4 {[%emt 0:00:30]} Bxe4 {[%emt 0:00:30]} 20. a3 {[%emt 0:00:30]} Bd5 {[%emt 0:00:30]} 21. f3 {[%emt 0:00:30]} f5 {[%emt 0:00:30]} 22. Kf2 {[%emt 0:00:30]} g6 {[%emt 0:00:30]} 23. Rfd1 {[%emt 0:00:30]} Bc4 {[%emt 0:00:30]} 24. f4 {[%emt 0:00:30]} Ra7 {[%emt 0:00:30]} 25. Rc3 {[%emt 0:00:30]} Rac7 {[%emt 0:00:30]} 26. Rdc1 {[%emt 0:00:30]} Kd6 {[%emt 0:00:30]} 27. Nf3 {[%emt 0:00:30]} h6 {[%emt 0:00:30]} 28. Ne5 {[%emt 0:00:30]} g5 {[%emt 0:00:30]} 29. g3 {[%emt 0:00:30]} g4 {[%emt 0:00:30]} 30. e4 {[%emt 0:00:30]} fxe4 {[%emt 0:00:30]} 1/2-1/2

[Event "MARCEL 1st Div Ch-League 2019"]
[Site "Dhaka"]
[Date "2019.11.18"]
[Round "7.1"]
[White "Md Emdadul, Haque"]
[Black "Badal, Halder"]
[Result "1-0"]
[ECO "D05"]
[WhiteElo "2070"]
[BlackElo "1841"]
[Annotator "NA RC"]
[PlyCount "46"]
[EventDate "2019.11.12"]
[EventCountry "BAN"]
[SourceTitle "playchess.com"]
[Source "ChessBase"]
[SourceQuality "1"]
[TimeControl "5400+30"]

{[%evp 10,46,10,32767,4,0,2,-16,0,-41,0,6,30,0,29,16,32,10,38,29,61,43,54,36,70,52,165,175,173,93,214,129,196,159,218,179,177,189,204]} 1. d4 {[%emt 0:00:00]} Nf6 {[%emt 0:00:00]} 2. Nf3 {[%emt 0:00:00]} d5 {[%emt 0:01:44]} 3. e3 {[%emt 0:01:17]} c5 {[%emt 0:01:15]} 4. c3 {[%emt 0:01:13]} e6 {[%emt 0:06:04]} 5. Bd3 {[%emt 0:00:47]} Nc6 {[%emt 0:02:00]} 6. Nbd2 {[%emt 0:00:40]} Be7 {[%emt 0:06:49]} 7. O-O {[%emt 0:01:16]} O-O {[%emt 0:01:43]} 8. Bc2 {[%emt 0:05:39] D05: Colle System with ...e6} (8. dxc5 Bxc5 9. b4 Be7 10. Bb2 a6 11. a4 Bd7 12. e4 Qc7 13. Re1 dxe4 14. Nxe4 Nxe4 15. Bxe4 Bf6 16. Qb1 h6 {0-1 (48) Edouard,R (2658)-Huschenbeth,N (2594) Skopje 2019}) 8... Qc7 {[%emt 0:00:15]} 9. h3 {[%emt 0:01:11]} h6 $146 {[%emt 0:02:41]} ({Predecessor:} 9... e5 10. dxe5 Nxe5 11. Nxe5 Qxe5 12. Nf3 Qh5 13. Bd3 Bd6 14. Be2 Bxh3 15. Ne1 Bg4 {0-1 (28) Vujosevic,S (2065)-Mongeau,D (2005) Canada 1996}) 10. Re1 {[%emt 0:01:04]} cxd4 {[%emt 0:03:40]} 11. exd4 {[%emt 0:04:39]} Bd6 {[%emt 0:01:31]} 12. Nf1 {[%emt 0:02:00]} Bd7 {[%emt 0:04:24]} 13. Qe2 {[%emt 1:10:09]} Rac8 {[%emt 1:08:48]} (13... b5 $5) 14. Bd3 {[%emt 1:07:59]} Rce8 {[%emt 1:09:18]} 15. Ne5 {[%emt 1:06:38]} Bc8 {[%emt 1:09:48]} 16. f4 {[%emt 0:00:30]} Nd7 {[%emt 0:00:30]} 17. Ng3 {[%emt 0:01:00]} Bxe5 {[%emt 0:00:00]} (17... Nf6 $14) 18. fxe5 {[%emt 0:01:30]} ({Don't do} 18. dxe5 $6 f6 $14) 18... f5 {[%emt 0:01:30]} 19. Kh1 {[%emt 0:02:00]} (19. Nh5 $18) 19... Rf7 {[%emt 0:00:00]} (19... Nf6 $16 {was worth a try.}) 20. Nf1 {[%emt 0:02:30]} g5 {[%emt 0:00:00]} (20... Nb6 $16 21. b3 Ne7) 21. Qh5 {[%emt 0:03:00]} Kg7 {[%emt 0:03:00]} 22. h4 {[%emt 0:03:30]} Rh8 {[%emt 0:03:30]} 23. Nh2 {[%emt 0:04:00]} Qd8 $18 {[%emt 0:04:00]} 1-0

[Event "MARCEL 1st Div Ch-League 2019"]
[Site "Dhaka"]
[Date "2019.11.18"]
[Round "7.3"]
[White "Islam, Mohammad Aminul"]
[Black "Sarbojit Paul"]
[Result "0-1"]
[ECO "A26"]
[WhiteElo "2078"]
[BlackElo "2074"]
[Annotator "NA RC"]
[PlyCount "112"]
[EventDate "2019.11.12"]
[EventCountry "BAN"]
[SourceTitle "playchess.com"]
[Source "ChessBase"]
[SourceQuality "1"]
[TimeControl "5400+30"]

{[%evp 15,112,-5,32767,12,22,15,21,24,48,41,42,38,37,50,54,0,8,0,38,22,22,0,36,46,33,40,98,95,156,157,179,175,164,82,147,146,132,129,158,135,130,134,143,129,172,181,167,28,32767,32767,32767,32767,32767,32767,32767,-11,-13,0,-12,-21,32767,-73,-16,-12,0,-52,0,-7,0,-57,-42,-56,-48,-70,-74,-65,-69,-97,-60,-69,-87,-99,-84,-103,-106,-109,-87,-98,-108,-258,-291,-295,-293,32767,32767,-619,-676,-1283,-1568]} 1. c4 {[%emt 0:00:00]} Nf6 {[%emt 0:00:35]} 2. g3 {[%emt 0:00:56]} g6 {[%emt 0:00:28]} 3. Bg2 {[%emt 0:00:19]} Bg7 {[%emt 0:00:06]} 4. Nc3 {[%emt 0:00:42]} d6 {[%emt 0:00:05]} 5. Nf3 {[%emt 1:30:33]} Nc6 {[%emt 1:31:16]} 6. O-O {[%emt 0:01:20]} O-O {[%emt 0:00:06]} 7. d3 {[%emt 0:02:00]} e5 {[%emt 0:00:44]} 8. Bd2 {[%emt 0:01:26]} Nd7 {[%emt 1:31:41] A26: English Opening vs King's Indian with ...Nc6 and d3} (8... Re8 9. e4 a6 10. a3 Bg4 11. h3 Bxf3 12. Bxf3 Nd7 13. Bg2 Nd4 14. Be3 a5 15. b4 axb4 16. axb4 Rxa1 17. Qxa1 {0-1 (77) Stefanova,A (2505)-Mamedov,R (2655) Almaty 2016}) 9. Rb1 {[%emt 0:01:04]} f5 {[%emt 0:02:26]} 10. Bg5 {[%emt 0:02:50]} Nf6 {[%emt 1:25:04]} 11. Nd5 {[%emt 0:00:21]} Ne7 {[%emt 0:03:42]} 12. Bxf6 {[%emt 0:00:37]} Bxf6 {[%emt 0:01:49]} 13. Nxf6+ {[%emt 0:07:38]} Rxf6 {[%emt 0:00:05]} 14. b4 $146 {[%emt 0:00:20]} ({Predecessor:} 14. Nd2 g5 15. d4 exd4 16. Nf3 {1-0 (37) Mai,A (1970)-Fjallheim,L (1720) Kopavogur 2018}) 14... h6 {[%emt 0:04:12]} 15. c5 {[%emt 0:01:25]} Be6 {[%emt 0:03:58]} 16. Qd2 {[%emt 0:00:37]} Kg7 {[%emt 0:01:57]} 17. Rfc1 {[%emt 1:15:42]} g5 {[%emt 0:05:38]} 18. Rb2 {[%emt 0:01:51]} g4 {[%emt 1:04:16]} 19. Nh4 {[%emt 0:04:02]} d5 {[%emt 0:10:58]} 20. f4 {[%emt 0:20:14]} gxf3 {[%emt 0:16:09]} (20... e4 $14) 21. exf3 {[%emt 0:04:35]} Bg8 {[%emt 0:09:05]} (21... b5 $142) 22. Re1 {[%emt 0:03:30]} Re6 {[%emt 0:00:03]} 23. Bh3 {[%emt 0:03:45]} Qf8 {[%emt 0:02:10]} 24. d4 {[%emt 0:08:06]} ({White should play} 24. f4) 24... Qf6 {[%emt 0:03:06]} ({Better is} 24... exd4 25. Rbb1 (25. Qxd4+ Qf6 $11) 25... Qf6) 25. dxe5 {[%emt 0:01:32]} Rxe5 {[%emt 0:00:00]} 26. Rxe5 {[%emt 0:00:43]} Qxe5 {[%emt 0:00:01]} 27. Rb1 {[%emt 0:31:35]} Be6 {[%emt 0:05:00] [#]} 28. Re1 $1 {[%emt 0:02:16]} Qf6 {[%emt 0:00:01]} 29. Qf4 {[%emt 0:01:52]} Rd8 {[%emt 0:04:38]} 30. Qxc7 {[%emt 0:04:47]} Rd7 {[%emt 0:00:52] [#]} 31. Qe5 {[%emt 0:00:39]} ({White should play} 31. Qf4 $1 $18) 31... Qxe5 {[%emt 0:00:09]} 32. Rxe5 {[%emt 0:00:12]} Kf6 {[%emt 0:00:18]} 33. f4 {[%emt 0:04:05]} d4 {[%emt 0:00:19]} 34. Nf3 {[%emt 0:02:25]} Nc6 {[%emt 0:15:06]} 35. Re2 {[%emt 0:03:49]} Nxb4 {[%emt 0:00:40]} 36. a3 {[%emt 0:02:26]} Nc6 {[%emt 0:05:46]} 37. Rb2 {[%emt 0:02:06]} Bd5 {[%emt 0:01:46]} 38. Nd2 {[%emt 0:00:28]} Re7 {[%emt 0:01:07]} 39. Kf2 {[%emt 0:12:17]} Nd8 {[%emt 0:03:31]} 40. Rb4 {[%emt 0:04:01]} Nc6 {[%emt 0:04:18]} 41. Rb2 {[%emt 0:00:44]} Nd8 {[%emt 0:00:03]} 42. Rb4 {[%emt 0:00:35]} Ne6 {[%emt 0:00:12]} 43. Bf1 {[%emt 0:02:58]} Rc7 {[%emt 0:00:22]} 44. Bc4 {[%emt 0:00:53]} Bxc4 {[%emt 0:00:31]} ({Reject} 44... Rxc5 $6 45. Bxd5 Rxd5 46. Rxb7 $11) 45. Nxc4 {[%emt 0:00:57]} Rxc5 {[%emt 0:01:33]} 46. Ne5 {[%emt 0:00:46]} Rc2+ {[%emt 0:04:19]} 47. Ke1 {[%emt 0:00:22]} b6 {[%emt 0:04:26]} ({Of course not} 47... Rxh2 $6 48. Rxb7 Nc5 49. Rxa7 $11) 48. Ra4 {[%emt 0:00:31]} Rc7 {[%emt 0:01:41]} 49. Kd2 {[%emt 0:00:15]} Nc5 {[%emt 0:00:20]} 50. Rb4 {[%emt 0:00:43]} Ke6 {[%emt 0:01:43]} 51. Nf3 {[%emt 0:01:40]} Ne4+ {[%emt 0:02:20]} 52. Kd1 $2 {[%emt 0:01:09]} (52. Ke2 $17) 52... d3 {[%emt 0:00:37]} 53. Rd4 {[%emt 0:01:31]} Rc3 {[%emt 0:00:44]} 54. g4 {[%emt 0:00:55]} Rxa3 {[%emt 0:00:40]} 55. gxf5+ {[%emt 0:00:33]} Kxf5 {[%emt 0:00:00]} 56. Nh4+ {[%emt 0:00:21]} Kxf4 $19 {[%emt 0:00:13]} 0-1

[Event "MARCEL 1st Div Ch-League 2019"]
[Site "Dhaka"]
[Date "2019.11.18"]
[Round "7.4"]
[White "Anisuzzaman, Jewel"]
[Black "Avik, Sarker"]
[Result "0-1"]
[ECO "E03"]
[WhiteElo "1852"]
[BlackElo "1980"]
[Annotator "NA RC"]
[PlyCount "137"]
[EventDate "2019.11.12"]
[EventCountry "BAN"]
[SourceTitle "playchess.com"]
[Source "ChessBase"]
[SourceQuality "1"]
[TimeControl "5400+30"]

{[%evp 12,111,4,-39,-11,-47,-51,-43,-2,-45,-9,-23,0,-18,79,41,78,10,60,4,38,31,99,51,45,-31,89,97,79,110,125,95,99,97,102,81,101,89,294,103,93,95,109,96,121,47,133,152,206,97,95,34,16,25,24,10,14,11,22,-88,-113,-65,-110,-63,-102,-110,-51,-55,-22,-29,-26,-35,-25,-57,-66,-85,-83,-85,-83,-89,-82,-110,-93,-127,-135,-135,-82,-234,-303,-260,-331,-319,-415,-412,-461,-493,-602,32767,32767,-1066,-1057,-1263]} 1. d4 {[%emt 0:00:28]} d5 {[%emt 0:00:00]} 2. c4 {[%emt 0:00:14]} e6 {[%emt 0:00:02]} 3. Nf3 {[%emt 0:00:18]} Nf6 {[%emt 0:00:14]} 4. g3 {[%emt 0:00:06]} dxc4 {[%emt 0:00:22]} 5. Qa4+ {[%emt 0:05:13]} Nbd7 {[%emt 0:01:24]} 6. Bg2 {[%emt 0:03:43]} a6 {[%emt 0:03:53]} 7. Qxc4 {[%emt 0:04:03]} b5 {[%emt 0:01:03]} 8. Qc2 {[%emt 0:01:59]} Bb7 {[%emt 0:00:31]} 9. O-O {[%emt 0:00:45] E03: Open Catalan: 5 Qa4+ Nbd7 6 Qxc4} Bd6 {[%emt 0:04:27]} (9... c5 10. Nc3 Rc8 11. dxc5 Bxc5 12. a3 O-O 13. Bg5 Qb6 14. Bxf6 Nxf6 15. e3 a5 16. Rfd1 Rc7 17. Qe2 Ba6 18. Bf1 Ra8 19. Nxb5 Nd5 20. a4 Rac8 21. Nfd4 {1-0 (68) Stupak,K (2537)-Melkumyan,H (2661) Skopje 2019}) 10. Nbd2 {[%emt 1:18:11]} Rc8 $146 {[%emt 1:23:04]} ({Predecessor:} 10... c5 11. e4 cxd4 12. Nxd4 Rc8 {0-1 (31) Dunaevskaya,A (1696)-Podgornova,A (1714) Moscow 2018}) 11. e4 {[%emt 1:13:43]} c5 {[%emt 0:06:52]} 12. d5 {[%emt 0:01:04]} e5 {[%emt 0:21:02]} ({Of course not} 12... exd5 {[#]} 13. e5 $1 $16 {[%mdl 512]}) (12... c4 $11 {keeps the balance.}) 13. Nh4 {[%emt 0:05:33]} g6 {[%emt 0:03:23] [#]} 14. Bh3 {[%emt 0:09:43]} (14. b3 $1 $16) 14... O-O {[%emt 0:01:22]} 15. Ndf3 {[%emt 0:01:33]} Kg7 {[%emt 0:07:22]} 16. Bg5 {[%emt 0:02:18]} h6 {[%emt 0:00:56]} 17. Bxf6+ {[%emt 0:11:19] Pin} Kxf6 {[%emt 0:00:12]} 18. Qc3 {[%emt 0:02:04]} ({White should try} 18. a4 $14) 18... b4 {[%emt 0:09:29]} (18... c4 $11) 19. Qe3 {[%emt 0:03:03]} Kg7 {[%emt 0:00:14] [#]} 20. Nd2 $1 {[%emt 0:00:29]} Rb8 {[%emt 0:05:11]} 21. Nc4 {[%emt 0:35:13]} Nb6 {[%emt 0:00:28]} 22. Nxd6 {[%emt 0:01:17]} Qxd6 {[%emt 0:00:45]} 23. Rac1 {[%emt 0:00:27]} Bc8 {[%emt 0:05:59]} 24. Bg2 {[%emt 0:01:25]} g5 $2 {[%emt 0:00:26]} (24... Na4 $16) 25. Nf3 {[%emt 0:00:50]} (25. Rxc5 $18 Qd8 26. Nf3) 25... c4 {[%emt 0:16:35]} 26. Nd2 {[%emt 0:00:34]} Bd7 {[%emt 0:00:51]} 27. f4 {[%emt 0:03:49]} ({Reject} 27. Nxc4 $6 Nxc4 28. Rxc4 Bb5 $14) 27... f6 {[%emt 0:02:25]} 28. Rf2 {[%emt 0:04:32]} (28. fxg5 $16 hxg5 29. Rc2 (29. Nxc4 Nxc4 30. Rxc4 Bb5 $11)) 28... Bb5 {[%emt 0:00:45] [#]} ({Black should play} 28... Rbc8 $14) 29. Bh3 $1 {[%emt 0:04:38]} Rb7 {[%emt 0:02:44]} 30. Qf3 {[%emt 0:03:11]} ({Better is} 30. Be6 $18) 30... Rc7 {[%emt 0:02:55]} 31. Nf1 {[%emt 0:02:03]} exf4 {[%emt 0:02:18]} 32. gxf4 {[%emt 0:01:36]} Qxf4 {[%emt 0:01:06]} 33. Qxf4 {[%emt 0:00:56]} gxf4 {[%emt 0:00:01]} 34. Rxf4 {[%emt 0:00:02]} c3 {[%emt 0:02:16]} 35. bxc3 {[%emt 0:02:08]} (35. b3 $11) 35... Rxc3 {[%emt 0:01:20]} 36. Rxc3 {[%emt 0:11:59]} bxc3 {[%emt 0:00:01]} 37. Ne3 {[%emt 0:00:01] [#]} Bd3 $1 {[%emt 0:01:12]} 38. Kf2 {[%emt 0:08:16] [#]} c2 {[%emt 0:01:35]} (38... Rb8 $1 $17 39. Be6 c2 40. Rg4+ Kh8) 39. Rg4+ {[%emt 0:00:06]} Kf7 {[%emt 0:00:49]} 40. Rg1 {[%emt 0:00:08]} Bxe4 {[%emt 0:00:17]} 41. Be6+ {[%emt 0:00:39]} Ke7 {[%emt 0:00:14]} 42. Rc1 {[%emt 0:00:36]} Kd6 {[%emt 0:00:50]} 43. Nxc2 {[%emt 0:01:12]} Nxd5 {[%emt 0:00:29]} 44. Bxd5 {[%emt 0:00:44]} Bxd5 {[%emt 0:02:27]} 45. Ne3 {[%emt 0:01:40]} Be6 {[%emt 0:00:00]} 46. a3 {[%emt 0:01:07]} Rb8 {[%emt 0:00:00]} 47. Rc3 {[%emt 0:01:06]} Rb2+ {[%emt 0:00:00]} 48. Kg3 {[%emt 0:00:14]} Ke5 {[%emt 0:01:20]} 49. Ng2 $2 {[%emt 0:01:13]} ({White should play} 49. Ng4+ $1 $15 Bxg4 50. Kxg4) 49... Rb3 {[%emt 0:00:20]} 50. Rxb3 {[%emt 0:00:04]} Bxb3 {[%emt 0:01:20]} 51. Ne3 {[%emt 0:01:40]} f5 {[%emt 0:00:21]} 52. Ng2 {[%emt 0:00:19]} Ke4 {[%emt 0:00:45]} 53. Nf4 {[%emt 0:02:05]} a5 {[%emt 0:00:43]} 54. h4 {[%emt 0:00:16]} a4 {[%emt 0:00:25]} 55. Ng2 {[%emt 0:01:00]} Bc4 {[%emt 0:00:29]} 56. Nf4 $19 {[%emt 0:00:20]} Kd4 {[%emt 0:00:25]} 57. Ng2 {[%emt 0:00:33]} Kc3 {[%emt 0:00:21]} 58. Ne3 {[%emt 0:00:10]} Be6 {[%emt 0:00:39]} 59. Kf4 {[%emt 0:00:08]} Kb3 {[%emt 0:00:20]} 60. Ke5 {[%emt 0:00:03]} Bc8 {[%emt 0:00:58]} 61. Kd4 {[%emt 0:00:44]} f4 {[%emt 0:00:39]} 62. Nd1 {[%emt 0:02:58]} Bd7 {[%emt 0:00:37]} 63. Nf2 {[%emt 0:00:18]} h5 {[%emt 0:00:28]} 64. Nd3 {[%emt 0:00:25]} Kxa3 {[%emt 0:00:22]} 65. Kc3 {[%emt 0:01:53]} f3 {[%emt 0:00:24]} 66. Nf2 {[%emt 0:01:51]} Bf5 {[%emt 0:00:31]} 67. Nd1 {[%emt 0:00:40]} Ka2 {[%emt 0:00:34]} 68. Nf2 {[%emt 0:01:08]} a3 {[%emt 0:01:14]} 69. Kb4 {[%emt 0:01:07]} 0-1

[Event "MARCEL 1st Div Ch-League 2019"]
[Site "Dhaka"]
[Date "2019.11.18"]
[Round "7.5"]
[White "Sabya, Sachi"]
[Black "Md Shawkat Ali Sheikh"]
[Result "0-1"]
[ECO "B85"]
[WhiteElo "1887"]
[BlackElo "1851"]
[Annotator "NA RC"]
[PlyCount "74"]
[EventDate "2019.11.12"]
[EventCountry "BAN"]
[SourceTitle "playchess.com"]
[Source "ChessBase"]
[SourceQuality "1"]
[TimeControl "5400+30"]

{[%evp 22,74,0,-41,32767,-39,-35,-101,-60,-62,-43,-50,-24,-39,-13,-72,-50,-54,-90,-56,-69,-142,-119,-146,-98,-289,-134,-195,-144,-406,-464,-470,-215,-1241,-1666,-5418,-29970,-5497,-838,-774,-1171,-29988,32767,-849,-1619,-29982,-29980,-29994,-565,-29995,-440,-29996,-29997,-29997,-29998]} 1. e4 {[%emt 0:00:21]} c5 {[%emt 1:30:30]} 2. Nf3 {[%emt 0:00:18]} e6 {[%emt 0:00:00]} 3. d4 {[%emt 0:00:48]} cxd4 {[%emt 0:00:00]} 4. Nxd4 {[%emt 0:00:09]} Nc6 {[%emt 0:00:00]} 5. Be3 {[%emt 0:00:30]} Nf6 {[%emt 0:00:29]} 6. Nc3 {[%emt 0:01:08]} a6 {[%emt 0:00:08]} 7. Be2 {[%emt 0:01:21]} Qc7 {[%emt 0:00:07]} 8. O-O {[%emt 0:01:39]} Be7 {[%emt 0:01:00]} 9. f4 {[%emt 0:00:51]} d6 {[%emt 0:00:09]} 10. Kh1 {[%emt 0:01:07]} O-O {[%emt 0:00:06]} 11. g4 {[%emt 0:01:43]} Nxd4 {[%emt 0:01:51] B85: Sicilian Scheveningen: 6 Be2 a6, lines with early Be3} 12. Bxd4 {[%emt 0:00:42]} b5 {[%emt 0:00:13]} 13. g5 {[%emt 0:01:53]} Nd7 {[%emt 0:01:45]} 14. Be3 $146 {[%emt 0:04:15]} (14. a3 $11) ({Predecessor:} 14. Bd3 Bb7 15. Qh5 e5 16. Nd5 Qd8 17. Rf3 exd4 18. Rh3 h6 19. Rg1 {0-1 (39) Tratatovici,D (2122)-Ris,R (2436) Reykjavik 2009}) 14... Bb7 {[%emt 0:01:41]} 15. Bf3 {[%emt 0:00:01]} Rad8 {[%emt 0:01:48]} 16. a3 {[%emt 0:01:36]} g6 {[%emt 0:06:34]} 17. Bg2 {[%emt 0:00:51]} f5 {[%emt 0:02:04]} 18. exf5 {[%emt 0:01:20]} Bxg2+ {[%emt 0:00:32]} 19. Kxg2 {[%emt 0:00:11]} Rxf5 {[%emt 0:01:53]} 20. h4 {[%emt 0:04:03]} Rdf8 {[%emt 0:02:31]} 21. Kg3 {[%emt 0:01:45]} (21. Qd2 $15) 21... R8f7 {[%emt 0:02:50]} 22. Qe2 {[%emt 0:13:14]} Qc6 {[%emt 0:00:38]} (22... d5 $19 23. Rad1 Bd6) 23. h5 $2 {[%emt 0:01:28]} (23. Rae1 $17) 23... e5 {[%emt 0:03:49]} (23... d5 $19 24. Kh2 e5 25. fxe5 Nxe5 26. Rxf5 Rxf5 27. hxg6 Nf3+ {[%mdl 64] Double Attack} 28. Kg2 {[#]} d4 $1 {[%mdl 512]} 29. gxh7+ Kxh7 30. Rh1+ Kg7 $1 {[%mdl 512]}) 24. hxg6 {[%emt 0:06:13]} hxg6 {[%emt 0:04:18]} 25. Rad1 $2 {[%emt 0:02:42]} (25. fxe5 Nxe5 26. Rxf5 Rxf5 27. Rf1) 25... exf4+ {[%emt 0:01:48]} 26. Bxf4 {[%emt 0:52:51]} Ne5 {[%emt 1:06:46]} (26... Bxg5 $142 27. Qe8+ Kg7 28. Qxf7+ Rxf7 29. Bxg5 Rxf1 30. Rxf1 Qc5) 27. Qe3 $2 {[%emt 0:00:00] [#]} (27. Qe4) 27... Bxg5 $1 {[%emt 0:00:00] Pin} 28. Nd5 {[%emt 0:00:00]} Bxf4+ {[%emt 0:00:00]} 29. Rxf4 {[%emt 0:00:00]} Rxf4 {[%emt 0:01:30]} (29... Rg5+ $142 30. Kh4 Rh5+ 31. Kg3 Qxc2 32. Qd2 Qb3+ 33. Nc3 Rg5+ 34. Kf2 Rg4 35. Ne2 Rfxf4+ 36. Qxf4 Rxf4+ 37. Nxf4 Qxd1 38. Ne2 Qb3 39. Kf1 Qxb2 40. Ke1 Nd3+ 41. Kd1 Kg7 42. a4 bxa4 43. Nd4 Nf2+ 44. Ke1 Qxd4 45. Kf1 Ne4 46. Ke2 d5 47. Kf3 Qf2+ 48. Kg4 Qg3#) 30. Qxf4 {[%emt 0:00:00]} Qxc2 {[%emt 0:00:00] Double Attack} ({Less strong is} 30... Rxf4 31. Ne7+ Kf7 32. Nxc6 $17) 31. Qd2 {[%emt 0:00:00]} Qf5 {[%emt 0:00:00]} (31... Rf3+ $142 32. Kh2 Rf2+ {[%mdl 64] Double Attack} 33. Kg3 Rxd2 34. Rxd2 Qxd2 35. Nc3 g5 36. a4 Qe3+ 37. Kg2 Nd3 38. Nd5 Qf2+ 39. Kh3 Qg1 40. Ne7+ {[#]} Kf7 $1 {[%mdl 512]} 41. axb5 Nf4#) 32. Qf4 {[%emt 0:00:00] [#]} Qh5 $1 {[%emt 0:00:00]} 33. Ne7+ {[%emt 0:00:00] [#]} Kg7 $1 {[%emt 0:00:00]} 34. Qd4 {[%emt 0:00:00]} Rf3+ {[%emt 0:00:00]} 35. Kg2 {[%emt 0:00:00]} Qh3+ {[%emt 0:00:00]} 36. Kg1 {[%emt 0:00:00]} Rg3+ {[%emt 0:00:00]} 37. Kf2 {[%emt 0:00:00]} Rg2+ {[%emt 0:00:00]} 0-1